bitfinex/quotes_SOLUSD_20220227
["timestamp","ask_amount","ask_price","bid_price","bid_amount"]
[1645997602172,2.74678921,85.185,85.097,117.0]
[1645997602372,2.74678921,85.185,85.099,117.0]
[1645997602572,1.75800101,85.207,85.101,117.0]
[1645997602974,2.74678921,85.206,85.103,117.0]
[1645997603273,31.1060719,85.205,85.105,117.0]
[1645997603476,1.68610996,85.204,85.111,117.0]
[1645997603674,6.0,85.203,85.113,117.0]
[1645997603975,8.74678921,85.203,85.115,117.0]
[1645997604175,8.74678921,85.203,85.114,6.0]
[1645997604176,2.74678921,85.203,85.117,117.0]
[1645997604373,2.74678921,85.202,85.119,117.0]
[1645997604573,2.74678921,85.202,85.121,117.0]
[1645997604773,2.74678921,85.202,85.123,117.0]
[1645997604977,2.24678921,85.202,85.125,117.0]
[1645997605174,2.74678921,85.201,85.127,117.0]
[1645997605473,36.27999496,85.2,85.129,117.0]
[1645997605673,36.27999496,85.2,85.131,117.0]
[1645997605874,2.74678921,85.199,85.133,117.0]
[1645997606076,2.74678921,85.199,85.135,117.0]
[1645997606275,2.74678921,85.199,85.137,117.0]
[1645997606476,2.74678921,85.199,85.139,117.0]
[1645997606677,4.400963,85.21,85.141,117.0]
[1645997606877,38.94262431,85.21,85.143,117.0]
[1645997607074,4.400963,85.21,85.145,117.0]
[1645997607274,2.74678921,85.21,85.147,117.0]
[1645997607474,2.74678921,85.21,85.149,117.0]
[1645997607678,2.74678921,85.21,85.151,117.0]
[1645997607874,2.74678921,85.21,85.152,6.0]
[1645997608074,25.95681533,85.209,85.151,117.0]
[1645997608476,2.74678921,85.208,85.152,6.0]
[1645997608977,2.74678921,85.208,85.137,117.0]
[1645997609177,2.74678921,85.208,85.136,6.0]
[1645997609178,2.74678921,85.208,85.139,117.0]
[1645997609376,2.74678921,85.208,85.141,117.0]
[1645997609576,2.74678921,85.208,85.143,117.0]
[1645997609777,2.74678921,85.208,85.145,117.0]
[1645997609979,2.74678921,85.208,85.147,117.0]
[1645997610178,2.74678921,85.208,85.149,117.0]
[1645997610376,2.74678921,85.208,85.151,117.0]
[1645997610579,2.74678921,85.208,85.153,117.0]
[1645997610780,29.99923944,85.208,85.155,117.0]
[1645997610977,29.99923944,85.208,85.134,23.8863]
[1645997610978,29.99923944,85.208,85.157,117.0]
[1645997611277,2.74678921,85.207,85.159,117.0]
[1645997611476,2.74678921,85.207,85.156,6.0]
[1645997611877,2.74678921,85.207,85.135,6.0]
[1645997612282,4.36711732,85.207,85.136,117.0]
[1645997612477,4.36711732,85.207,85.138,117.0]
[1645997612681,2.74678921,85.206,85.14,117.0]
[1645997612878,2.74678921,85.206,85.142,117.0]
[1645997613179,2.74678921,85.206,85.144,117.0]
[1645997613378,2.74678921,85.206,85.146,117.0]
[1645997613578,36.46482838,85.205,85.147,6.0]
[1645997613781,1.91248226,85.204,85.145,6.0]
[1645997613982,4.65927147,85.204,85.145,6.0]
[1645997614182,4.65927147,85.204,85.141,117.0]
[1645997614380,2.74678921,85.203,85.142,6.0]
[1645997614800,2.74678921,85.203,85.143,117.0]
[1645997615001,2.74678921,85.203,85.145,117.0]
[1645997615202,2.74678921,85.203,85.147,117.0]
[1645997615401,2.74678921,85.203,85.149,117.0]
[1645997615602,2.74678921,85.203,85.15,6.0]
[1645997615802,2.74678921,85.203,85.151,117.0]
[1645997616002,2.74678921,85.203,85.153,117.0]
[1645997616207,2.74678921,85.203,85.155,117.0]
[1645997616402,2.74678921,85.203,85.157,117.0]
[1645997616806,2.74678921,85.203,85.159,117.0]
[1645997617008,2.74678921,85.203,85.161,117.0]
[1645997617206,112.6,85.216,85.163,117.0]
[1645997617506,99.68372883,85.216,85.165,117.0]
[1645997617706,13.27711717,85.245,85.164,6.0]
[1645997617707,112.6,85.219,85.17,13.77]
[1645997617906,112.6,85.219,85.171,123.0]
[1645997618306,2.74678921,85.241,85.171,123.0]
[1645997618508,2.74678921,85.241,85.171,128.42]
[1645997619007,2.74678921,85.251,85.173,117.0]
[1645997619310,112.6,85.26,85.177,117.0]
[1645997619507,112.6,85.26,85.191,117.0]
[1645997619707,112.6,85.26,85.193,117.0]
[1645997619906,2.74678921,85.259,85.195,117.0]
[1645997620210,2.74678921,85.259,85.196,6.0]
[1645997620413,53.26300901,85.258,85.197,117.0]
[1645997620605,1.94244265,85.257,85.192,22.7807]
[1645997620806,27.84629889,85.257,85.192,22.7807]
[1645997621007,29.91781,85.256,85.192,22.7807]
[1645997621210,1.90250539,85.255,85.192,22.7807]
[1645997621407,1.83020642,85.254,85.192,22.7807]
[1645997621607,26.9297161,85.254,85.192,22.7807]
[1645997621807,2.04399778,85.253,85.192,22.7807]
[1645997622009,6.0,85.252,85.15,31.3786]
[1645997622214,6.5499834,85.251,85.151,24.0115]
[1645997622415,1.57987781,85.249,85.151,24.0115]
[1645997622622,30.68102072,85.228,85.153,117.0]
[1645997622819,30.68102072,85.228,85.155,117.0]
[1645997622820,1.57467979,85.227,85.155,117.0]
[1645997623020,26.63231918,85.227,85.155,117.0]
[1645997623320,29.55359283,85.226,85.154,6.0]
[1645997623519,1.71055656,85.225,85.151,24.0115]
[1645997623722,25.51498516,85.225,85.151,24.0115]
[1645997624019,9.29329996,85.224,85.151,24.0115]
[1645997624220,1.59174367,85.223,85.151,24.0115]
[1645997624421,26.64938306,85.223,85.151,24.0115]
[1645997624622,4.45813959,85.222,85.151,24.0115]
[1645997624820,29.55764927,85.222,85.151,24.0115]
[1645997625019,29.64662092,85.221,85.151,24.0115]
[1645997625223,1.7006825,85.22,85.151,24.0115]
[1645997625421,29.54698139,85.22,85.151,24.0115]
[1645997625622,26.49954584,85.219,85.152,6.0]
[1645997625821,1.43753985,85.218,85.151,24.0115]
[1645997626021,26.53704953,85.218,85.151,24.0115]
[1645997626322,1.7925587,85.216,85.151,24.0115]
[1645997626523,27.2424802,85.215,85.151,24.0115]
[1645997626723,1.55135852,85.214,85.151,24.0115]
[1645997626924,4.28961947,85.227,85.152,117.0]
[1645997627526,1.54283026,85.227,85.152,117.0]
[1645997627826,12.0464505,85.228,85.152,117.0]
[1645997628028,112.6,85.229,85.154,117.0]
[1645997628226,112.6,85.229,85.156,117.0]
[1645997628428,112.6,85.229,85.158,117.0]
[1645997628627,27.01484017,85.258,85.161,117.0]
[1645997628833,27.01484017,85.258,85.163,117.0]
[1645997629028,27.01484017,85.258,85.164,2.97523828]
[1645997629228,31.82976306,85.257,85.166,117.0]
[1645997629438,31.82976306,85.257,85.171,117.0]
[1645997629632,21.2688487,85.256,85.173,117.0]
[1645997629833,21.2688487,85.256,85.175,117.0]
[1645997630132,21.2688487,85.256,85.177,117.0]
[1645997630337,21.2688487,85.256,85.176,30.7069]
[1645997630338,21.2688487,85.256,85.179,117.0]
[1645997630534,21.2688487,85.256,85.181,117.0]
[1645997630736,21.2688487,85.256,85.183,117.0]
[1645997630935,21.2688487,85.256,85.185,117.0]
[1645997631139,21.2688487,85.256,85.187,117.0]
[1645997631336,112.6,85.263,85.189,117.0]
[1645997631539,112.6,85.263,85.191,117.0]
[1645997631736,138.97862017,85.263,85.191,117.0]
[1645997631935,138.97862017,85.263,85.193,117.0]
[1645997632138,29.56848792,85.262,85.195,117.0]
[1645997632337,29.56848792,85.262,85.197,117.0]
[1645997632537,29.56848792,85.262,85.199,117.0]
[1645997632835,24.35330737,85.261,85.201,117.0]
[1645997633035,24.35330737,85.261,85.203,117.0]
[1645997633237,24.35330737,85.261,85.205,117.0]
[1645997633459,24.35330737,85.261,85.207,117.0]
[1645997633636,24.35330737,85.261,85.209,117.0]
[1645997633838,24.35330737,85.261,85.211,117.0]
[1645997634035,24.35330737,85.261,85.21,6.0]
[1645997634036,24.35330737,85.261,85.213,117.0]
[1645997634237,29.56848792,85.262,85.215,117.0]
[1645997634436,29.56848792,85.262,85.217,117.0]
[1645997634638,53.92179529,85.262,85.217,117.0]
[1645997635038,53.92179529,85.262,85.191,117.0]
[1645997635537,53.92179529,85.262,85.193,117.0]
[1645997635737,53.92179529,85.262,85.195,117.0]
[1645997636036,53.92179529,85.262,85.197,117.0]
[1645997636237,53.92179529,85.262,85.198,123.0]
[1645997636536,53.92179529,85.262,85.2,117.0]
[1645997636738,53.92179529,85.262,85.201,6.0]
[1645997636943,53.92179529,85.262,85.197,117.0]
[1645997637146,53.92179529,85.262,85.198,123.0]
[1645997637342,53.92179529,85.262,85.199,6.0]
[1645997637543,53.92179529,85.262,85.2,117.0]
[1645997637746,53.92179529,85.262,85.201,6.0]
[1645997637943,53.92179529,85.262,85.199,6.0]
[1645997638344,53.92179529,85.262,85.2,117.0]
[1645997638544,53.92179529,85.262,85.188,22.5789]
[1645997638742,53.92179529,85.262,85.189,6.0]
[1645997638943,53.92179529,85.262,85.19,117.0]
[1645997639143,53.92179529,85.262,85.192,117.0]
[1645997639443,1.78206982,85.26,85.188,22.5789]
[1645997639653,1.50206968,85.259,85.188,22.5789]
[1645997639844,7.54778961,85.258,85.16,2.2275]
[1645997640045,41.85684033,85.258,85.168,146.2424]
[1645997640245,1.55524334,85.257,85.168,146.2424]
[1645997640543,45.00035596,85.256,85.168,146.2424]
[1645997640744,1.51155363,85.255,85.168,146.2424]
[1645997640974,1.80340756,85.254,85.168,146.2424]
[1645997641167,27.17602479,85.254,85.168,146.2424]
[1645997641468,9.72702436,85.253,85.168,146.2424]
[1645997641870,13.77,85.25,85.168,23.2424]
[1645997642073,40.18524313,85.249,85.168,140.2424]
[1645997642272,1.41975236,85.248,85.168,140.2424]
[1645997642468,10.694,85.247,85.168,140.2424]
[1645997642768,1.67103691,85.246,85.168,140.2424]
[1645997642968,6.0,85.245,85.168,140.2424]
[1645997643171,4.694,85.244,85.168,140.2424]
[1645997643371,13.77,85.24,85.168,140.2424]
[1645997643569,10.694,85.239,85.168,140.2424]
[1645997643871,1.68019661,85.238,85.169,6.0]
[1645997644271,25.37261723,85.237,85.169,6.0]
[1645997644472,35.52784984,85.236,85.168,140.2424]
[1645997644673,7.67166628,85.235,85.168,140.2424]
[1645997644875,1.45691314,85.229,85.168,140.2424]
[1645997645672,25.33074694,85.228,85.168,140.2424]
[1645997645873,1.56216203,85.227,85.168,140.2424]
[1645997646273,112.6,85.23,85.17,117.0]
[1645997646473,112.6,85.23,85.172,117.0]
[1645997646673,112.6,85.23,85.174,117.0]
[1645997646875,112.6,85.23,85.176,117.0]
[1645997647077,112.6,85.23,85.177,123.0]
[1645997647278,112.6,85.23,85.177,117.0]
[1645997647775,112.6,85.23,85.178,6.0]
[1645997648176,112.6,85.23,85.171,117.0]
[1645997648380,112.6,85.23,85.168,23.2424]
[1645997648381,112.6,85.23,85.173,117.0]
[1645997648578,112.6,85.23,85.175,117.0]
[1645997648775,112.6,85.23,85.177,117.0]
[1645997648978,145.54030469,85.23,85.178,6.0]
[1645997649577,112.6,85.23,85.179,117.0]
[1645997649778,112.6,85.23,85.181,117.0]
[1645997649978,112.6,85.23,85.183,117.0]
[1645997650279,112.6,85.23,85.184,6.0]
[1645997650879,112.6,85.23,85.169,6.0]
[1645997651280,112.6,85.23,85.17,117.0]
[1645997651479,112.6,85.23,85.172,117.0]
[1645997651680,112.6,85.23,85.174,117.0]
[1645997651879,112.6,85.23,85.176,117.0]
[1645997652080,112.6,85.23,85.178,117.0]
[1645997652480,112.6,85.23,85.18,117.0]
[1645997652681,112.6,85.23,85.168,23.2424]
[1645997652882,112.6,85.23,85.169,6.0]
[1645997653080,112.6,85.23,85.17,117.0]
[1645997653281,112.6,85.23,85.172,117.0]
[1645997653482,112.6,85.23,85.174,117.0]
[1645997653682,112.6,85.23,85.176,117.0]
[1645997653882,112.6,85.23,85.177,123.0]
[1645997654082,1.5274586,85.229,85.177,6.0]
[1645997654283,1.5274586,85.229,85.177,123.0]
[1645997655283,1.5274586,85.229,85.168,23.2424]
[1645997655486,2.74678921,85.228,85.168,23.2424]
[1645997655686,28.07753615,85.228,85.168,23.2424]
[1645997656086,1.71460874,85.227,85.168,23.2424]
[1645997656286,26.30977361,85.227,85.168,23.2424]
[1645997656486,27.02297357,85.226,85.168,23.2424]
[1645997656694,6.05416324,85.225,85.11,17.6191]
[1645997656887,13.77,85.22,85.116,49.3778]
[1645997657186,6.1351868,85.219,85.117,6.0]
[1645997657385,1.777706,85.218,85.117,6.0]
[1645997657585,1.56420529,85.216,85.117,6.0]
[1645997657786,6.0,85.215,85.117,6.0]
[1645997657989,6.43438799,85.214,85.117,6.0]
[1645997658188,13.77,85.2,85.117,6.0]
[1645997658387,32.14130618,85.199,85.117,6.0]
[1645997658586,1.4369256,85.198,85.117,6.0]
[1645997659787,1.83359512,85.198,85.117,6.0]
[1645997660189,25.37261723,85.197,85.117,6.0]
[1645997660386,1.72899333,85.196,85.116,49.3778]
[1645997660592,1.42324832,85.194,85.116,49.3778]
[1645997660789,1.7814854,85.192,85.116,49.3778]
[1645997660989,6.0,85.191,85.117,6.0]
[1645997661391,25.39419723,85.191,85.118,6.0]
[1645997661591,1.53095114,85.197,85.117,6.0]
[1645997662793,6.0,85.196,85.117,6.0]
[1645997663202,4.697,85.195,85.117,6.0]
[1645997663400,1.55565028,85.195,85.117,6.0]
[1645997663900,1.63747585,85.189,85.116,49.3778]
[1645997664102,10.697,85.188,85.116,49.3778]
[1645997664301,1.46545855,85.187,85.116,49.3778]
[1645997664501,34.89875413,85.185,85.116,49.3778]
[1645997664703,7.3800176,85.184,85.117,6.0]
[1645997665504,7.3800176,85.184,85.117,117.0]
[1645997666103,7.3800176,85.184,85.088,23.785]
[1645997666304,7.3800176,85.184,85.089,54.3081]
[1645997666504,7.3800176,85.184,85.09,117.0]
[1645997666704,7.3800176,85.184,85.089,54.3081]
[1645997666705,7.3800176,85.184,85.092,117.0]
[1645997666913,7.3800176,85.184,85.094,117.0]
[1645997667221,7.3800176,85.184,85.095,6.0]
[1645997667422,7.3800176,85.184,85.093,6.0]
[1645997667623,13.77,85.18,85.09,6.0]
[1645997667825,1.68566031,85.178,85.077,117.0]
[1645997668123,117.0,85.176,85.078,6.0]
[1645997668327,117.0,85.176,85.075,24.635]
[1645997668328,117.0,85.174,85.088,500.0]
[1645997668522,13.77,85.16,85.088,500.0]
[1645997668723,30.8532061,85.158,85.088,500.0]
[1645997668923,6.0,85.157,85.088,500.0]
[1645997669124,7.66717079,85.157,85.088,500.0]
[1645997670427,119.74678921,85.156,85.088,500.0]
[1645997670626,117.0,85.154,85.088,500.0]
[1645997670833,13.77,85.14,85.088,500.0]
[1645997671028,41.08614151,85.139,85.088,500.0]
[1645997671226,118.73888321,85.138,85.088,500.0]
[1645997671427,6.0,85.137,85.088,500.0]
[1645997671826,10.32788361,85.137,85.088,500.0]
[1645997672026,9.13406961,85.136,85.088,500.0]
[1645997672226,117.0,85.134,85.088,500.0]
[1645997672427,13.77,85.13,85.088,500.0]
[1645997672627,117.0,85.128,85.088,500.0]
[1645997672827,34.50090418,85.125,85.088,500.0]
[1645997673027,13.77,85.11,85.088,500.0]
[1645997673230,7.51253071,85.109,85.088,500.0]
[1645997673430,6.0,85.108,85.088,500.0]
[1645997676330,1.51253071,85.109,85.088,500.0]
[1645997676528,6.0,85.108,85.088,500.0]
[1645997680935,6.1373964,85.107,85.088,500.0]
[1645997681137,7.81962746,85.106,85.088,500.0]
[1645997681339,1.60702934,85.105,85.088,500.0]
[1645997681535,6.0,85.104,85.088,500.0]
[1645997681836,30.91664557,85.099,85.088,500.0]
[1645997682035,6.0,85.098,85.088,500.0]
[1645997682236,3.03219996,85.097,85.088,500.0]
[1645997682436,6.0,85.096,85.088,500.0]
[1645997683942,6.0,85.096,85.088,360.25561274]
[1645997684140,1.84464063,85.094,85.088,360.25561274]
[1645997684541,117.0,85.092,85.088,65.8663206]
[1645997684740,10.7,85.093,84.967,196.3403]
[1645997684741,2.74678921,85.085,84.967,196.3403]
[1645997684941,117.0,85.069,84.968,22.8927]
[1645997685153,33.4888,85.068,84.968,22.8927]
[1645997685342,1.73089766,85.067,84.968,22.8927]
[1645997685542,117.0,85.065,84.969,34.33651954]
[1645997685740,117.0,85.049,84.969,34.33651954]
[1645997685944,1.6305101,85.048,84.97,6.0]
[1645997686340,1.53385224,85.059,84.97,6.0]
[1645997686543,7.44349281,85.058,84.97,6.0]
[1645997686842,7.44349281,85.058,84.971,22.9364]
[1645997687041,7.44349281,85.058,84.972,6.0]
[1645997688045,7.44349281,85.058,84.973,117.0]
[1645997688243,6.0,85.058,84.975,117.0]
[1645997688443,13.77,85.06,84.977,117.0]
[1645997688643,22.7848,85.068,84.979,117.0]
[1645997688843,6.0,85.067,84.982,33.48786704]
[1645997689146,6.0,85.079,84.983,170.6675]
[1645997689344,6.0,85.079,84.983,219.30809456]
[1645997689543,6.0,85.079,84.985,117.0]
[1645997689745,6.0,85.079,84.987,117.0]
[1645997690045,6.0,85.079,84.991,117.0]
[1645997690246,6.0,85.09,84.994,2.27134639]
[1645997690445,6.0,85.09,84.998,117.0]
[1645997690646,13.77,85.1,85.001,2.88416114]
[1645997690848,13.77,85.1,85.003,117.0]
[1645997691046,13.77,85.1,85.005,117.0]
[1645997691248,13.77,85.1,85.002,6.0]
[1645997691249,13.77,85.1,85.007,117.0]
[1645997691446,13.77,85.09,85.011,117.0]
[1645997691649,13.77,85.09,85.013,117.0]
[1645997691846,13.77,85.09,85.015,117.0]
[1645997692047,13.77,85.09,85.017,117.0]
[1645997692247,13.77,85.09,85.018,6.0]
[1645997692849,1.36625312,85.104,85.019,117.0]
[1645997693047,1.36625312,85.104,85.021,117.0]
[1645997693247,1.36625312,85.104,85.024,32.39929428]
[1645997693469,1.36625312,85.104,85.025,123.0]
[1645997693647,23.2241,85.105,85.027,117.0]
[1645997693848,13.77,85.12,85.03,2.72458519]
[1645997694049,13.77,85.12,85.032,117.0]
[1645997694251,13.77,85.12,85.034,117.0]
[1645997694448,13.77,85.12,85.036,117.0]
[1645997694648,1.41995096,85.147,85.041,117.0]
[1645997694848,1.41995096,85.147,85.043,117.0]
[1645997694849,6.0,85.146,85.043,117.0]
[1645997695049,6.0,85.146,85.044,2.58763454]
[1645997695249,6.0,85.146,85.046,117.0]
[1645997695452,10.7,85.147,85.048,117.0]
[1645997695649,13.77,85.15,85.05,117.0]
[1645997695848,13.77,85.15,85.052,117.0]
[1645997696049,13.77,85.15,85.054,117.0]
[1645997696249,13.77,85.15,85.056,117.0]
[1645997696548,13.77,85.15,85.059,3.11974592]
[1645997696951,13.77,85.15,85.062,2.64338998]
[1645997697152,13.77,85.15,85.066,117.0]
[1645997697352,13.77,85.15,85.067,6.0]
[1645997698651,13.77,85.15,85.068,117.0]
[1645997698851,13.77,85.15,85.07,117.0]
[1645997699052,13.77,85.15,85.072,117.0]
[1645997699254,13.77,85.15,85.074,117.0]
[1645997699453,13.77,85.15,85.075,6.0]
[1645997699653,13.77,85.15,85.076,24.4266]
[1645997699952,7.56799432,85.149,85.076,24.4266]
[1645997700151,7.56799432,85.149,85.065,30.92901537]
[1645997700353,7.56799432,85.149,85.066,24.4266]
[1645997700553,25.76508817,85.148,85.066,24.4266]
[1645997700753,7.79481961,85.147,85.066,24.4266]
[1645997700972,4.699,85.146,85.066,24.4266]
[1645997701155,6.0,85.145,85.066,24.4266]
[1645997701355,13.77,85.13,85.066,24.4266]
[1645997701555,6.0,85.129,85.066,24.4266]
[1645997701758,4.7,85.128,85.066,24.4266]
[1645997701960,6.0,85.127,85.066,24.4266]
[1645997702355,117.0,85.126,85.043,23.0159]
[1645997702554,17.645,85.12,85.043,23.0159]
[1645997702755,117.0,85.109,84.981,2.58062498]
[1645997702954,10.702,85.108,85.003,48.3591]
[1645997703254,1.64009866,85.107,85.029,32.91835054]
[1645997703455,10.702,85.106,85.029,32.91835054]
[1645997703653,1.65587833,85.105,85.029,32.91835054]
[1645997703855,10.702,85.104,85.029,32.91835054]
[1645997704055,13.77,85.1,85.029,32.91835054]
[1645997704260,12.10556352,85.099,85.016,117.0]
[1645997704457,1.55884365,85.098,85.016,117.0]
[1645997704756,1.43888388,85.096,85.004,117.0]
[1645997704956,1.82319861,85.094,85.004,117.0]
[1645997705159,10.702,85.093,85.004,117.0]
[1645997705456,6.0,85.092,85.026,34.173499]
[1645997705657,6.0,85.095,85.027,23.9388]
[1645997706261,13.77,85.09,85.027,23.9388]
[1645997706460,13.77,85.08,85.003,24.4597]
[1645997706659,6.0,85.079,85.003,24.4597]
[1645997706862,4.703,85.078,85.003,24.4597]
[1645997707061,6.0,85.077,85.003,24.4597]
[1645997707262,7.77280792,85.077,85.004,23.1226]
[1645997708166,1.44231514,85.075,85.004,23.1226]
[1645997708362,117.0,85.073,85.004,23.1226]
[1645997708581,13.77,85.06,84.983,24.84]
[1645997708782,6.0,85.059,84.984,23.1167]
[1645997708981,6.0,85.059,84.985,31.54690179]
[1645997709182,6.0,85.059,84.986,117.0]
[1645997709880,6.0,85.059,84.987,6.0]
[1645997710082,6.0,85.059,84.986,6.0]
[1645997710682,6.0,85.059,84.986,123.0]
[1645997711085,6.0,85.059,84.986,6.0]
[1645997711489,13.77,85.06,84.986,123.0]
[1645997713685,13.77,85.06,84.986,6.0]
[1645997713885,6.0,85.059,84.985,31.54690179]
[1645997714094,6.0,85.059,84.984,46.7034]
[1645997714287,7.738668,85.059,84.984,46.7034]
[1645997714493,7.738668,85.059,84.952,26.01101828]
[1645997714494,1.66315419,85.057,84.952,14.44002467]
[1645997714694,10.705,85.056,84.953,46.989]
[1645997714886,1.72336277,85.055,84.954,123.0]
[1645997715088,10.705,85.056,84.956,117.0]
[1645997715089,1.79814406,85.053,84.956,117.0]
[1645997715285,13.77,85.04,84.957,6.0]
[1645997715488,13.77,85.04,84.955,30.0835968]
[1645997715489,7.52110098,85.039,84.955,30.0835968]
[1645997716300,4.706,85.038,84.955,30.0835968]
[1645997716493,6.0,85.037,84.956,6.0]
[1645997716693,7.86163085,85.037,84.956,6.0]
[1645997717195,6.0,85.037,84.956,6.0]
[1645997717393,7.52154202,85.039,84.956,6.0]
[1645997717592,7.52154202,85.039,84.953,46.989]
[1645997717893,117.0,85.037,84.953,46.989]
[1645997718094,6.38750845,85.038,84.953,46.989]
[1645997718295,6.0,85.037,84.953,46.989]
[1645997718496,6.0,85.039,84.955,26.45106886]
[1645997718695,6.0,85.039,84.956,6.0]
[1645997718896,4.706,85.038,84.956,6.0]
[1645997719095,6.0,85.037,84.955,26.45106886]
[1645997719298,121.706,85.036,84.955,26.45106886]
[1645997719499,1.59157738,85.033,84.953,46.989]
[1645997719699,13.77,85.02,84.953,46.989]
[1645997719897,7.58010607,85.019,84.953,46.989]
[1645997720501,1.74957337,85.018,84.932,24.397]
[1645997720700,4.707,85.017,84.933,24.4903]
[1645997720901,1.69253318,85.016,84.933,24.4903]
[1645997721100,118.57683855,85.014,84.901,23.8011]
[1645997721299,10.707,85.015,84.902,24.845]
[1645997721300,117.0,84.999,84.902,24.845]
[1645997721500,117.0,84.989,84.902,24.845]
[1645997721699,117.0,84.979,84.902,24.845]
[1645997721903,13.77,84.97,84.902,24.845]
[1645997722099,10.708,84.978,84.902,24.845]
[1645997722100,13.77,84.96,84.902,24.845]
[1645997722303,7.44274084,84.959,84.852,117.0]
[1645997722500,4.711,84.958,84.854,117.0]
[1645997722702,7.53890607,84.957,84.856,117.0]
[1645997722902,4.711,84.956,84.858,117.0]
[1645997723103,4.711,84.956,84.857,6.0]
[1645997723104,6.0,84.955,84.86,117.0]
[1645997723303,13.77,84.95,84.861,32.61887928]
[1645997723501,10.711,84.949,84.861,26.61887928]
[1645997723703,1.73099453,84.948,84.861,26.61887928]
[1645997723903,10.711,84.947,84.861,26.61887928]
[1645997724104,1.4667295,84.946,84.861,26.61887928]
[1645997724306,10.711,84.945,84.861,26.61887928]
[1645997724504,13.77,84.94,84.861,26.61887928]
[1645997724704,10.711,84.939,84.861,26.61887928]
[1645997724907,1.76603309,84.938,84.862,6.0]
[1645997725106,1.76603309,84.938,84.853,47.6892]
[1645997725107,6.0,84.937,84.853,47.6892]
[1645997725306,121.711,84.936,84.853,47.6892]
[1645997725506,7.62647737,84.935,84.853,47.6892]
[1645997725816,6.53381378,84.934,84.853,47.6892]
[1645997726006,13.77,84.92,84.854,33.70021613]
[1645997726205,6.0,84.919,84.854,33.70021613]
[1645997726606,6.0,84.919,84.855,117.0]
[1645997726805,13.77,84.94,84.856,123.0]
[1645997727006,6.0,84.939,84.856,6.0]
[1645997727210,4.711,84.938,84.854,33.70021613]
[1645997727410,6.0,84.937,84.854,33.70021613]
[1645997727607,4.711,84.936,84.855,6.0]
[1645997727810,6.0,84.935,84.855,6.0]
[1645997728408,6.0,84.935,84.855,117.0]
[1645997728609,7.71470837,84.939,84.855,117.0]
[1645997728810,4.711,84.938,84.855,117.0]
[1645997729009,6.0,84.937,84.857,117.0]
[1645997729208,4.711,84.936,84.859,117.0]
[1645997729409,6.0,84.935,84.859,117.0]
[1645997729812,6.0,84.936,84.854,33.70021613]
[1645997730014,4.711,84.935,84.854,33.70021613]
[1645997730215,6.0,84.934,84.854,33.70021613]
[1645997730411,13.77,84.92,84.854,33.70021613]
[1645997730713,7.41572029,84.919,84.854,33.70021613]
[1645997730912,6.0,84.919,84.854,33.70021613]
[1645997731814,7.38499173,84.919,84.854,33.70021613]
[1645997732916,6.0,84.919,84.855,117.0]
[1645997733115,13.77,84.92,84.855,117.0]
[1645997733315,13.77,84.92,84.854,33.70021613]
[1645997733515,13.77,84.92,84.855,6.0]